bitfinex/quotes_BTCUSD_20230403
["timestamp","ask_amount","ask_price","bid_price","bid_amount"]
[1680560193363,1.29526816,27789.0,27786.0,0.2]
[1680560193623,0.009205,27792.0,27786.0,0.20328807]
[1680560193848,1.29524992,27791.0,27787.0,0.05816888]
[1680560194066,0.1,27790.0,27787.0,0.05834888]
[1680560194294,0.1,27790.0,27787.0,0.03135746]
[1680560195183,0.00021,27795.0,27787.0,0.03135746]
[1680560195406,0.008996,27790.0,27788.0,0.42915078]
[1680560195629,0.008996,27790.0,27788.0,0.43752353]
[1680560195872,0.008995,27791.0,27788.0,0.43734353]
[1680560196090,0.04057764,27791.0,27788.0,0.43734353]
[1680560196285,0.04057764,27791.0,27788.0,0.3709819]
[1680560196527,0.008995,27791.0,27788.0,0.3989819]
[1680560196747,0.008995,27791.0,27788.0,0.3709819]
[1680560196966,0.008995,27791.0,27788.0,0.3989819]
[1680560197207,0.008995,27792.0,27789.0,0.04334474]
[1680560197445,0.35086913,27794.0,27789.0,0.04334474]
[1680560197676,0.008995,27792.0,27789.0,0.05816888]
[1680560197900,0.008995,27792.0,27787.0,0.03446549]
[1680560198129,0.008995,27792.0,27790.0,0.39395278]
[1680560199225,0.008995,27792.0,27790.0,0.40895278]
[1680560199447,0.008995,27792.0,27790.0,0.39395278]
[1680560199676,0.05121638,27792.0,27790.0,0.41595278]
[1680560199917,0.05121638,27792.0,27790.0,0.022]
[1680560200155,0.04057764,27791.0,27790.0,0.022]
[1680560200382,0.008995,27791.0,27790.0,0.022]
[1680560200611,0.309205,27793.0,27790.0,0.25325569]
[1680560200837,0.008995,27792.0,27790.0,0.25325569]
[1680560201112,0.30021,27793.0,27790.0,0.25325569]
[1680560201338,0.008995,27792.0,27790.0,0.25325569]
[1680560201559,0.008995,27792.0,27790.0,0.23125569]
[1680560201786,0.008995,27792.0,27790.0,0.24625569]
[1680560202018,0.008995,27792.0,27790.0,0.23125569]
[1680560202281,0.00021,27797.0,27795.0,0.2]
[1680560202517,0.06606708,27798.0,27796.0,0.05816888]
[1680560202737,0.06606708,27798.0,27797.0,0.02581689]
[1680560203209,0.06606708,27798.0,27797.0,0.4359595]
[1680560203434,0.01076784,27798.0,27797.0,0.4361395]
[1680560203655,0.01076784,27798.0,27797.0,0.4360795]
[1680560204338,0.01076784,27798.0,27797.0,0.4641395]
[1680560204555,0.01076784,27798.0,27797.0,0.47832364]
[1680560204744,0.01076784,27798.0,27797.0,0.51292364]
[1680560205028,0.01076784,27798.0,27797.0,0.57172164]
[1680560205243,0.01076784,27798.0,27797.0,0.53492364]
[1680560205910,0.01076784,27798.0,27797.0,0.51292364]
[1680560206172,0.01076784,27798.0,27797.0,0.54092364]
[1680560207625,0.01076784,27798.0,27797.0,0.47450969]
[1680560208533,0.01076784,27798.0,27797.0,0.02818]
[1680560208848,0.01076784,27798.0,27797.0,0.06248]
[1680560209649,0.01076784,27798.0,27797.0,0.100954]
[1680560209882,0.01076784,27798.0,27797.0,0.5184718]
[1680560210111,0.01076784,27798.0,27797.0,0.53814632]
[1680560210321,0.01076784,27798.0,27797.0,0.13432718]
[1680560210533,0.01076784,27798.0,27797.0,0.06248]
[1680560210972,0.01076784,27798.0,27797.0,0.3986011]
[1680560211209,0.01076784,27798.0,27797.0,0.4370571]
[1680560211434,0.15266465,27798.0,27797.0,0.06248]
[1680560211660,0.20377007,27798.0,27797.0,0.02818]
[1680560211885,0.08305926,27798.0,27797.0,0.02818]
[1680560212117,0.07406626,27798.0,27797.0,0.02818]
[1680560212394,0.05288026,27798.0,27797.0,0.02818]
[1680560213215,0.07467226,27798.0,27797.0,0.02818]
[1680560213481,0.07314826,27798.0,27797.0,0.02818]
[1680560213794,0.07314826,27798.0,27797.0,0.00018]
[1680560214109,0.12481808,27798.0,27797.0,0.02218]
[1680560214387,0.12481808,27798.0,27797.0,0.022]
[1680560214388,0.2590852,27798.0,27797.0,0.022]
[1680560214654,0.1606512,27798.0,27797.0,0.022]
[1680560214918,0.4606512,27798.0,27797.0,0.022]
[1680560215178,0.41792538,27798.0,27795.0,0.00018]
[1680560215413,0.321315,27797.0,27794.0,0.41093722]
[1680560215646,0.047978,27796.0,27794.0,0.41093722]
[1680560215853,0.021103,27795.0,27794.0,0.41093722]
[1680560216110,0.030097,27795.0,27794.0,0.41093722]
[1680560216398,0.030097,27795.0,27794.0,0.00018]
[1680560216632,0.021103,27795.0,27794.0,0.36742632]
[1680560216865,0.008994,27796.0,27794.0,0.36748632]
[1680560217315,0.31976084,27798.0,27794.0,0.38948632]
[1680560217536,0.03216108,27797.0,27794.0,0.36748632]
[1680560217761,0.31076784,27798.0,27794.0,0.38348632]
[1680560218003,0.31076784,27798.0,27794.0,0.36748632]
[1680560218229,0.31076784,27798.0,27794.0,0.42623495]
[1680560218451,0.01076784,27798.0,27794.0,0.42623495]
[1680560218672,0.01076784,27798.0,27794.0,0.0465001]
[1680560218937,0.01076784,27798.0,27795.0,0.60868674]
[1680560219150,0.01076784,27798.0,27796.0,0.037272]
[1680560219373,0.01076784,27798.0,27796.0,0.037452]
[1680560220060,0.01076784,27798.0,27797.0,0.036673]
[1680560220253,0.01076784,27798.0,27797.0,0.00018]
[1680560221436,0.01976084,27798.0,27794.0,0.20969147]
[1680560221661,0.16165765,27798.0,27797.0,0.028]
[1680560221853,0.01976084,27798.0,27797.0,0.028]
[1680560222321,0.01976084,27798.0,27796.0,0.40601827]
[1680560222983,0.01976084,27798.0,27797.0,0.028]
[1680560223207,0.01976084,27798.0,27796.0,0.40601827]
[1680560223432,0.01076784,27798.0,27796.0,0.46759524]
[1680560223663,0.01076784,27798.0,27796.0,0.14774585]
[1680560223898,0.01076784,27798.0,27797.0,0.235819]
[1680560224183,0.01076784,27798.0,27797.0,0.263819]
[1680560224404,0.01076784,27798.0,27797.0,0.78117836]
[1680560225065,0.01076784,27798.0,27797.0,0.3205666]
[1680560225527,0.01076784,27798.0,27797.0,0.3385536]
[1680560225768,0.01076784,27798.0,27797.0,0.3665536]
[1680560225990,0.01076784,27798.0,27797.0,0.3485666]
[1680560226219,0.01076784,27798.0,27797.0,0.3665536]
[1680560226452,0.018,27800.0,27797.0,1.05727716]
[1680560226679,0.018,27800.0,27798.0,0.88225145]
[1680560226916,0.018,27800.0,27799.0,0.037295]
[1680560227143,0.008991,27804.0,27799.0,0.537475]
[1680560227368,0.008991,27805.0,27800.0,0.05816888]
[1680560227613,0.008991,27805.0,27801.0,0.05816888]
[1680560227897,0.008991,27805.0,27802.0,0.00583489]
[1680560228088,0.008991,27805.0,27802.0,0.00601489]
[1680560229053,0.008991,27805.0,27802.0,0.00018]
[1680560229274,0.05472915,27806.0,27803.0,0.40152429]
[1680560229492,0.008991,27805.0,27803.0,0.4101111]
[1680560229712,0.008991,27805.0,27802.0,0.002]
[1680560229902,0.0235239,27809.0,27803.0,0.4219]
[1680560230167,0.0235239,27809.0,27804.0,0.05816888]
[1680560230593,0.0235239,27809.0,27804.0,0.10816888]
[1680560230836,0.0323039,27809.0,27804.0,0.05816888]
[1680560231098,0.06400662,27809.0,27804.0,0.05816888]
[1680560231332,0.06400662,27809.0,27804.0,0.14950426]
[1680560231333,0.009199,27809.0,27804.0,0.14950426]
[1680560231557,0.009199,27809.0,27804.0,0.09133538]
[1680560231759,0.009199,27809.0,27804.0,0.028]
[1680560232248,0.00021,27810.0,27806.0,0.6766861]
[1680560232478,0.00021,27810.0,27807.0,0.035682]
[1680560232706,0.02797683,27815.0,27814.0,1.2586861]
[1680560232959,0.05412513,27820.0,27814.0,1.2586861]
[1680560232960,0.00895793,27819.0,27815.0,0.02789317]
[1680560233210,0.00021,27824.0,27821.0,0.6766861]
[1680560233467,0.019465,27831.0,27830.0,0.6766861]
[1680560233468,0.0015,27831.0,27830.0,0.6766861]
[1680560233704,6e-05,27836.0,27835.0,1.0586861]
[1680560233951,0.04875782,27839.0,27838.0,0.6766861]
[1680560234191,0.04875782,27839.0,27838.0,0.77173398]
[1680560234427,0.04875782,27839.0,27838.0,0.81220838]
[1680560234682,0.04875782,27839.0,27838.0,0.7144611]
[1680560234922,0.04875782,27839.0,27824.0,0.90901192]
[1680560234923,0.0232539,27836.0,27824.0,0.90901192]
[1680560235164,0.0232539,27827.0,27824.0,0.15081794]
[1680560235401,0.16884881,27826.0,27824.0,0.13995794]
[1680560235635,0.031448,27825.0,27824.0,0.5831272]
[1680560235869,0.18250881,27825.0,27824.0,0.44316926]
[1680560236103,0.340612,27825.0,27824.0,0.44316926]
[1680560236344,0.340612,27825.0,27821.0,0.00018]
[1680560236345,0.367081,27825.0,27821.0,0.00018]
[1680560236574,0.46905073,27824.0,27820.0,0.19894087]
[1680560236809,0.46905073,27824.0,27818.0,0.6767461]
[1680560236810,0.031994,27823.0,27822.0,0.09514115]
[1680560237044,0.041159,27823.0,27822.0,0.09514115]
[1680560237271,0.041159,27823.0,27819.0,0.43705128]
[1680560237497,0.00018,27823.0,27822.0,0.6767461]
[1680560237741,0.00018,27823.0,27822.0,0.74442071]
[1680560237976,0.02277001,27826.0,27822.0,0.77089771]
[1680560238204,0.02277001,27826.0,27825.0,0.6767461]
[1680560238666,0.02277001,27826.0,27825.0,0.7036591]
[1680560238894,0.02277001,27826.0,27825.0,0.77518001]
[1680560239122,0.02277001,27826.0,27825.0,0.7048021]
[1680560239555,0.3,27831.0,27828.0,1.2587461]
[1680560239556,0.00018,27831.0,27828.0,1.2587461]
[1680560239566,0.00018,27833.0,27829.0,0.05]
[1680560239797,0.10248605,27839.0,27835.0,0.6767461]
[1680560239798,0.39520212,27838.0,27835.0,0.6767461]
[1680560240031,0.031929,27837.0,27836.0,0.06316888]
[1680560240259,0.10248605,27839.0,27836.0,0.06316888]
[1680560240976,0.03375782,27839.0,27836.0,0.06316888]
[1680560241207,0.03375782,27839.0,27835.0,0.6769261]
[1680560241208,0.03375782,27839.0,27835.0,0.6767461]
[1680560241443,0.03375782,27839.0,27838.0,1.1087461]
[1680560241674,0.0232539,27850.0,27843.0,0.6767461]
[1680560241907,0.026932,27847.0,27843.0,0.6769261]
[1680560242153,0.30893334,27846.0,27844.0,0.2234176]
[1680560242385,0.026934,27845.0,27844.0,0.30181299]
[1680560242622,0.058192,27845.0,27844.0,0.00018]
[1680560242861,0.031258,27845.0,27844.0,0.00018]
[1680560243095,0.1230711,27845.0,27844.0,0.44405307]
[1680560243330,0.10591571,27845.0,27844.0,0.00018]
[1680560243559,0.1248861,27845.0,27844.0,0.02218]
[1680560243798,0.02199942,27843.0,27839.0,0.43703848]
[1680560244027,0.026937,27842.0,27840.0,0.25299237]
[1680560244256,0.308979,27842.0,27841.0,0.40385796]
[1680560244510,0.342084,27842.0,27841.0,0.39651136]
[1680560244745,0.39708965,27842.0,27841.0,0.00018]
[1680560244980,0.79580882,27842.0,27839.0,0.00018]
[1680560245204,0.18344381,27841.0,27838.0,0.6769261]
[1680560245432,0.18344381,27841.0,27838.0,0.00018]
[1680560245433,0.145198,27840.0,27838.0,0.00018]
[1680560245653,0.145198,27840.0,27837.0,0.33497996]
[1680560245654,0.034916,27839.0,27837.0,0.33497996]
[1680560245873,0.026941,27838.0,27837.0,0.33515996]
[1680560246101,0.058145,27838.0,27837.0,0.36503473]
[1680560246325,0.066645,27838.0,27837.0,0.36503473]
[1680560246545,0.058145,27838.0,27837.0,0.02818]
[1680560246778,0.058145,27838.0,27837.0,0.09849261]
[1680560247083,0.031204,27838.0,27837.0,0.00018]
[1680560247269,0.031204,27838.0,27837.0,0.42986321]
[1680560247489,0.00898,27838.0,27837.0,0.42998321]
[1680560247705,0.00898,27838.0,27837.0,0.02218]
[1680560247923,0.00898,27838.0,27837.0,0.43422119]
[1680560248143,0.00898,27838.0,27837.0,0.02218]
[1680560248381,0.0335,27838.0,27837.0,0.07218]
[1680560248606,0.0918151,27839.0,27837.0,0.07218]
[1680560248607,0.0828351,27839.0,27837.0,0.07218]
[1680560249081,0.0828351,27839.0,27838.0,0.05]
[1680560249307,0.0828351,27839.0,27838.0,0.05018]
[1680560249530,0.0828351,27839.0,27838.0,0.075909]
[1680560249777,0.0828351,27839.0,27838.0,0.00018]
[1680560250022,0.0828351,27839.0,27838.0,0.34045571]
[1680560250244,0.0828351,27839.0,27838.0,0.01618]
[1680560250465,0.0828351,27839.0,27836.0,0.6767461]
[1680560250466,0.0828351,27839.0,27837.0,0.00018]
[1680560251155,0.0828351,27839.0,27837.0,0.05018]
[1680560251397,0.0828351,27839.0,27837.0,0.12287261]
[1680560251620,0.0828351,27839.0,27838.0,0.016]
[1680560252075,0.0828351,27839.0,27837.0,0.00018]
[1680560252304,0.0828351,27839.0,27837.0,0.098042]
[1680560252531,0.0828351,27839.0,27838.0,0.025493]
[1680560252759,0.0828351,27839.0,27838.0,0.046654]
[1680560252988,0.0828351,27839.0,27838.0,0.19566431]
[1680560253225,0.0828351,27839.0,27838.0,0.17966431]
[1680560253993,0.02199942,27843.0,27842.0,0.6767461]
[1680560254228,0.02199942,27843.0,27842.0,0.7044501]
[1680560254449,0.02199942,27843.0,27842.0,0.77193438]
[1680560254676,0.02199942,27843.0,27842.0,0.69648937]
[1680560255160,0.02199942,27843.0,27842.0,0.72448937]
[1680560255404,0.02199942,27843.0,27842.0,1.15666273]
[1680560255628,0.03097742,27843.0,27842.0,1.06098248]
[1680560255845,0.03097742,27843.0,27842.0,1.06428248]
[1680560256301,0.02199942,27843.0,27842.0,0.69678537]
[1680560256537,0.02199942,27843.0,27842.0,0.80544662]
[1680560257461,0.03097742,27843.0,27842.0,0.69998537]
[1680560257681,0.02199942,27843.0,27842.0,1.03865]
[1680560257903,0.02199942,27843.0,27842.0,1.06665]
[1680560258143,0.16389623,27843.0,27840.0,0.00018]
[1680560258377,1.06925443,27842.0,27838.0,1.537e-05]
[1680560258640,0.2,27838.0,27833.0,0.43156761]
[1680560258867,0.23904181,27837.0,27834.0,0.26754905]
[1680560259091,0.339254,27836.0,27833.0,0.41336418]
[1680560259322,0.060102,27835.0,27833.0,0.41336418]
[1680560259557,0.060102,27835.0,27834.0,0.2410124]
[1680560259558,0.027123,27835.0,27834.0,0.2410124]
[1680560259786,0.061319,27835.0,27834.0,0.2410124]
[1680560260042,0.061319,27835.0,27832.0,0.46434582]
[1680560260263,0.032148,27834.0,27832.0,0.46434582]
[1680560260482,0.026946,27833.0,27832.0,0.46434582]
[1680560260929,0.009162,27833.0,27832.0,0.04645258]
[1680560261162,0.008982,27833.0,27832.0,0.016]
[1680560261397,0.008982,27833.0,27832.0,0.46652236]
[1680560261627,0.008982,27833.0,27832.0,0.46630236]
[1680560261853,0.00018,27836.0,27832.0,0.46630236]
[1680560261854,0.00018,27836.0,27832.0,0.08874124]
[1680560262078,0.00898,27837.0,27833.0,0.025397]
[1680560262301,0.008981,27836.0,27833.0,0.06316888]
[1680560262570,0.008981,27836.0,27832.0,0.016]
[1680560262792,0.008981,27836.0,27834.0,0.40957563]
[1680560262793,0.15087781,27836.0,27834.0,0.40957563]
[1680560263019,0.008981,27836.0,27834.0,0.00018]
[1680560263256,0.008981,27836.0,27834.0,0.43948571]
[1680560263482,0.008981,27836.0,27834.0,0.37927016]
[1680560263713,0.008981,27836.0,27834.0,0.05054857]
[1680560263954,0.008981,27836.0,27832.0,0.05018]
[1680560264188,0.008981,27837.0,27834.0,0.053]
[1680560264403,0.008981,27837.0,27834.0,0.05]
[1680560264618,0.008981,27837.0,27834.0,0.053]
[1680560264847,0.00898,27838.0,27834.0,0.11316888]
[1680560265091,0.02691599,27841.0,27835.0,0.028058]
[1680560265314,0.017959,27840.0,27838.0,0.09102]
[1680560265535,0.026938,27840.0,27838.0,0.09102]
[1680560266193,0.026938,27840.0,27838.0,0.10702]
[1680560266480,0.30018,27842.0,27838.0,0.10702]
[1680560266707,0.009159,27842.0,27838.0,0.17018888]
[1680560266935,0.008979,27842.0,27839.0,0.01701889]
[1680560267818,0.008979,27842.0,27840.0,0.41399468]
[1680560268046,0.02199942,27843.0,27841.0,0.026178]
[1680560268271,0.02193282,27843.0,27840.0,0.025446]
[1680560268494,0.02193282,27843.0,27840.0,0.06539449]
[1680560268723,0.02193282,27843.0,27841.0,1.02515044]
[1680560268957,2.82e-06,27843.0,27842.0,0.608778]
[1680560269199,2.82e-06,27843.0,27842.0,0.96348856]
[1680560270108,2.82e-06,27843.0,27842.0,0.226778]
[1680560270399,2.82e-06,27843.0,27842.0,0.72764195]
[1680560270625,2.82e-06,27843.0,27842.0,0.08646865]
[1680560270852,0.00898082,27843.0,27842.0,0.054778]
[1680560271086,2.82e-06,27843.0,27842.0,0.028]
[1680560271308,0.00898082,27843.0,27841.0,0.00018]
[1680560271533,0.00898082,27843.0,27842.0,0.028]
[1680560271534,2.82e-06,27843.0,27842.0,0.028]
[1680560271769,2.82e-06,27843.0,27841.0,0.42994253]
[1680560272001,2.82e-06,27843.0,27842.0,0.028]
[1680560272465,2.82e-06,27843.0,27842.0,0.026366]
[1680560272678,2.82e-06,27843.0,27842.0,0.10017825]
[1680560272931,2.82e-06,27843.0,27842.0,0.31168315]
[1680560273368,2.82e-06,27843.0,27842.0,0.054366]
[1680560273820,2.82e-06,27843.0,27842.0,0.026366]
[1680560274047,0.14189963,27843.0,27842.0,0.026366]
[1680560274278,0.20898082,27843.0,27838.0,0.09102]
[1680560274496,0.15608677,27842.0,27838.0,0.09102]
[1680560274732,0.20916082,27843.0,27838.0,0.09102]
[1680560274733,2.82e-06,27843.0,27839.0,0.99969944]
[1680560274985,6e-05,27845.0,27842.0,0.76138]
[1680560275199,0.02306,27848.0,27843.0,0.605348]
[1680560275454,0.02306,27848.0,27844.0,0.17127568]
[1680560275679,0.02288,27848.0,27845.0,0.76317056]
[1680560275896,0.02288,27848.0,27846.0,0.606533]
[1680560276126,0.02288,27848.0,27847.0,0.43040956]
[1680560276352,0.02288,27848.0,27847.0,0.025879]
[1680560276573,0.02288,27848.0,27847.0,0.025699]
[1680560276822,0.02288,27848.0,27846.0,0.00018]
[1680560277032,0.02288,27848.0,27846.0,0.027244]
[1680560277263,0.02288,27848.0,27846.0,0.096004]
[1680560277494,0.02288,27848.0,27847.0,0.026661]
[1680560277767,0.02288,27848.0,27847.0,0.45025663]
[1680560278029,0.02288,27848.0,27847.0,0.50382463]
[1680560278228,0.02288,27848.0,27847.0,0.45323029]
[1680560278444,0.02288,27848.0,27847.0,0.43620463]
[1680560278662,0.02288,27848.0,27847.0,0.47534463]
[1680560278881,0.02288,27848.0,27847.0,0.43620463]
[1680560279098,0.02288,27848.0,27847.0,0.47510463]
[1680560279345,0.02288,27848.0,27847.0,0.47516463]
[1680560279555,0.02288,27848.0,27847.0,0.50310463]
[1680560279769,0.02288,27848.0,27847.0,0.47741663]
[1680560279986,0.02288,27848.0,27847.0,0.50522963]
[1680560280414,0.02288,27848.0,27847.0,0.47728963]
[1680560280687,0.02288,27848.0,27847.0,0.02818]
[1680560280916,0.02288,27848.0,27841.0,0.34318018]
[1680560280917,0.00018,27842.0,27841.0,0.34318018]
[1680560281135,0.14207681,27842.0,27841.0,0.36897918]
[1680560281356,0.14207681,27842.0,27841.0,0.34336018]
[1680560281592,0.00018,27842.0,27841.0,0.34336018]
[1680560281832,0.00018,27842.0,27841.0,0.00018]
[1680560282057,0.00018,27842.0,27841.0,0.11442602]
[1680560282286,0.00018,27842.0,27841.0,0.11277402]
[1680560282519,0.00018,27845.0,27841.0,0.11277402]
[1680560282753,0.00036,27847.0,27844.0,0.17956]
[1680560282997,0.00036,27847.0,27845.0,0.13827888]
[1680560282998,0.00018,27847.0,27845.0,0.13827888]
[1680560283236,0.00018,27847.0,27846.0,0.025733]
[1680560283517,0.02288,27848.0,27846.0,0.94198356]
[1680560283781,0.02288,27848.0,27847.0,0.76362956]
[1680560284043,0.02288,27848.0,27847.0,0.38162956]
[1680560284300,0.02288,27848.0,27847.0,0.11950996]
[1680560285053,0.02288,27848.0,27847.0,0.93422052]
[1680560285317,0.02288,27848.0,27847.0,0.5882066]
[1680560286179,0.02288,27848.0,27847.0,0.9422066]
[1680560286450,0.02288,27848.0,27847.0,0.9781166]
[1680560286701,0.02288,27848.0,27847.0,1.0061166]
[1680560287172,0.02288,27848.0,27847.0,0.9702066]
[1680560287405,0.02288,27848.0,27847.0,0.95217552]
[1680560288117,0.02288,27848.0,27847.0,0.9702066]
[1680560288349,0.02288,27848.0,27847.0,0.9703866]
[1680560288823,0.02288,27848.0,27847.0,0.077099]
[1680560289052,0.02288,27848.0,27847.0,0.87779564]
[1680560289276,0.02288,27848.0,27847.0,0.83158456]
[1680560289515,6e-05,27850.0,27848.0,0.19982]
[1680560289773,0.00018,27853.0,27849.0,0.99633456]
[1680560290011,0.00018,27853.0,27851.0,0.382]
[1680560290241,0.01072876,27851.0,27850.0,0.16961546]
[1680560290466,0.01072876,27851.0,27850.0,0.075329]
[1680560290702,0.01072876,27851.0,27850.0,0.272802]
[1680560290924,0.01072876,27851.0,27850.0,0.025329]
[1680560291175,0.01072876,27851.0,27850.0,0.425282]
[1680560291407,0.01072876,27851.0,27850.0,0.43586424]
[1680560291634,0.01072876,27851.0,27850.0,0.09569282]
[1680560291860,0.01072876,27851.0,27850.0,0.043282]
[1680560292372,0.01072876,27851.0,27850.0,0.76203956]
[1680560292599,0.01072876,27851.0,27850.0,0.52221684]
[1680560292827,0.01072876,27851.0,27850.0,0.49421684]
[1680560293049,0.01072876,27851.0,27850.0,0.053329]
[1680560293281,0.01072876,27851.0,27850.0,0.81210286]
[1680560293526,0.01072876,27851.0,27850.0,0.84010286]
[1680560294255,0.02288,27859.0,27858.0,0.382]
[1680560294480,0.02288,27859.0,27858.0,1.49810144]
[1680560294707,0.02306,27859.0,27858.0,0.505814]
[1680560294930,0.02306,27859.0,27858.0,0.4615724]
[1680560295149,0.02306,27859.0,27858.0,0.44354132]
[1680560295377,0.02306,27859.0,27858.0,0.40144132]
[1680560295618,0.02306,27859.0,27858.0,0.85972675]
[1680560295846,0.02306,27859.0,27858.0,0.96364742]
[1680560296072,0.02324,27859.0,27858.0,0.99164742]
[1680560296792,0.02324,27859.0,27858.0,0.85972675]
[1680560297015,0.02324,27859.0,27858.0,1.20419675]
[1680560297237,0.01806,27859.0,27858.0,1.02472675]
[1680560297451,0.01806,27859.0,27858.0,0.60335232]
[1680560297695,0.01806,27859.0,27858.0,1.32211488]
[1680560297931,0.01806,27859.0,27858.0,1.46224037]
[1680560297932,0.01788,27859.0,27858.0,1.46224037]
[1680560298147,0.01788,27859.0,27858.0,1.52613637]
[1680560298366,0.01788,27859.0,27858.0,1.49024037]
[1680560298589,0.01788,27859.0,27858.0,1.46224037]
[1680560298878,0.01788,27859.0,27858.0,1.54042037]
[1680560299101,0.01788,27859.0,27858.0,0.99726661]
[1680560299335,0.01788,27859.0,27858.0,0.94029488]
[1680560299560,0.01788,27859.0,27858.0,0.95093812]
[1680560299788,0.01788,27859.0,27858.0,0.58558432]
[1680560300017,0.01788,27859.0,27858.0,0.60353232]
[1680560300238,0.01788,27859.0,27858.0,0.68263555]
[1680560300454,0.01788,27859.0,27858.0,0.60353232]
[1680560300671,0.01788,27859.0,27858.0,0.57553232]
[1680560300893,0.01788,27859.0,27858.0,1.13771288]
[1680560301130,0.01788,27859.0,27858.0,1.49171288]
[1680560301390,0.01788,27859.0,27858.0,1.51971288]
[1680560301625,0.01788,27859.0,27858.0,1.65237397]
[1680560301857,0.01788,27859.0,27858.0,1.68037397]
[1680560302317,0.01788,27859.0,27858.0,1.65237397]
[1680560302535,0.01788,27859.0,27858.0,1.68037397]
[1680560303272,0.02288,27862.0,27860.0,0.58182]
[1680560303508,0.02375564,27870.0,27863.0,0.58182]
[1680560303741,0.02375564,27870.0,27867.0,0.69889]
[1680560303971,0.02375564,27870.0,27867.0,1.58499376]
[1680560304432,0.5393563,27868.0,27867.0,0.018177]
[1680560304663,0.00018,27865.0,27862.0,0.00012]
[1680560304892,0.00018,27863.0,27861.0,0.40140132]
[1680560305122,0.00018,27863.0,27862.0,0.019129]
[1680560305909,0.00018,27863.0,27862.0,0.069129]
[1680560306888,0.00018,27863.0,27862.0,0.097129]
[1680560307128,0.00018,27863.0,27862.0,0.16572603]
[1680560307367,0.00018,27868.0,27862.0,0.52675147]
[1680560307600,0.00018,27868.0,27867.0,0.17941]
[1680560307834,0.02357564,27870.0,27868.0,0.38218]
[1680560308071,0.02288,27876.0,27870.0,0.382]
[1680560308311,0.0359259,27888.0,27870.0,0.382]
[1680560308312,0.00018,27877.0,27872.0,0.382]
[1680560308546,0.1673,27892.0,27876.0,0.00018]
[1680560308792,0.00018,27883.0,27882.0,0.382]
[1680560309045,0.00018,27890.0,27883.0,0.49608]
[1680560309306,0.00018,27890.0,27882.0,0.79599032]
[1680560309307,0.137,27890.0,27884.0,0.08493488]
[1680560309540,0.00018,27890.0,27884.0,0.07029936]
[1680560309779,0.20018,27891.0,27884.0,0.07029936]
[1680560310017,0.00018,27892.0,27885.0,0.53401056]
[1680560310254,0.2,27891.0,27887.0,0.17929]
[1680560310506,0.5063037,27891.0,27885.0,0.17948]
[1680560310741,0.29197671,27886.0,27883.0,0.00018]
[1680560310982,0.29197671,27886.0,27879.0,0.17934]
[1680560310983,0.3362,27884.0,27880.0,0.00018]
[1680560311216,0.14189681,27883.0,27878.0,0.00018]
[1680560311449,0.49719833,27883.0,27876.0,0.00018]
[1680560311729,0.14189681,27883.0,27877.0,0.17935]
[1680560311956,0.14189681,27883.0,27881.0,0.38179626]
[1680560312190,0.00018,27883.0,27881.0,0.38179626]
[1680560313621,0.39011735,27888.0,27887.0,0.07029936]
[1680560313856,0.20917221,27891.0,27887.0,0.07029936]
[1680560313857,0.37022109,27889.0,27887.0,0.18471625]
[1680560314083,0.00018,27889.0,27887.0,0.18471625]
[1680560314330,0.36127015,27890.0,27887.0,0.18471625]
[1680560314770,0.00018,27890.0,27887.0,0.21271625]
[1680560315008,0.30500396,27889.0,27884.0,0.00018]
[1680560315248,0.44690077,27889.0,27887.0,0.32994512]
[1680560315488,0.04989,27888.0,27887.0,0.32994512]
[1680560315739,0.04989,27888.0,27885.0,0.00018]
[1680560315740,0.00018,27888.0,27885.0,0.00018]
[1680560315971,0.3,27890.0,27885.0,0.017949]
[1680560315972,0.30018,27890.0,27885.0,0.017949]
[1680560316216,0.295,27890.0,27885.0,0.017949]
[1680560316457,0.295,27890.0,27887.0,0.43387716]
[1680560316686,0.295,27890.0,27887.0,0.02818]
[1680560316909,0.295,27890.0,27886.0,0.37643711]
[1680560317130,0.295,27890.0,27886.0,0.37661711]
[1680560317577,0.295,27890.0,27887.0,0.028]
[1680560317816,0.32706052,27889.0,27887.0,0.04064171]
[1680560318076,0.295,27890.0,27887.0,0.04064171]
[1680560318539,0.295,27890.0,27887.0,0.00018]
[1680560318777,0.1359,27888.0,27887.0,0.00018]
[1680560319008,0.1359,27888.0,27886.0,0.028]
[1680560319009,0.87012563,27888.0,27883.0,0.30644534]
[1680560319241,0.2,27888.0,27887.0,0.028]
[1680560319471,0.389042,27888.0,27887.0,0.34759688]
[1680560319700,0.689042,27888.0,27887.0,0.37577688]
[1680560319916,0.689042,27888.0,27887.0,0.34777688]
[1680560320366,0.689042,27888.0,27887.0,0.00018]
[1680560320367,0.052742,27888.0,27887.0,0.00018]
[1680560320622,0.06322972,27891.0,27887.0,0.028]
[1680560320873,0.06322972,27891.0,27887.0,0.07029936]
[1680560320874,0.00899221,27891.0,27887.0,0.07029936]
[1680560321103,0.00899221,27891.0,27887.0,0.47096392]
[1680560321331,0.00899221,27891.0,27887.0,0.00720994]
[1680560321549,0.60611107,27892.0,27887.0,0.40223675]
[1680560321762,0.60611107,27892.0,27887.0,0.50053611]
[1680560322017,0.3,27891.0,27888.0,0.05]
[1680560322236,0.30018,27891.0,27888.0,0.05]
[1680560322446,0.30018,27891.0,27888.0,0.055]
[1680560322872,0.62875417,27891.0,27888.0,0.005]
[1680560323100,0.30018,27891.0,27888.0,0.028]
[1680560324205,0.30018,27891.0,27889.0,0.55843943]
[1680560325601,0.30018,27891.0,27890.0,0.05]
[1680560326047,0.30018,27891.0,27889.0,0.55843943]
[1680560326328,0.31987913,27890.0,27889.0,0.028]
[1680560326601,0.27627913,27890.0,27889.0,0.028]
[1680560326836,0.30018,27891.0,27888.0,0.36604895]
[1680560327057,0.58331514,27891.0,27890.0,0.028]
[1680560327289,0.495429,27891.0,27890.0,0.028]
[1680560327774,0.84800495,27891.0,27890.0,0.028]
[1680560328002,0.84800495,27891.0,27887.0,0.30739936]
[1680560328248,0.048496,27890.0,27889.0,0.028]
[1680560328473,0.048496,27890.0,27889.0,0.39028234]
[1680560328724,0.72356745,27891.0,27889.0,0.028]
[1680560328953,0.73973627,27891.0,27887.0,0.41824313]
[1680560329191,0.30779894,27890.0,27889.0,0.028]
[1680560329413,0.36589894,27890.0,27889.0,0.028]